bitfinex/quotes_BTCUSD_20240605
["timestamp","ask_amount","ask_price","bid_price","bid_amount"]
[1717558171347,0.08917789,70889.0,70888.0,0.0844]
[1717558171543,0.08717789,70889.0,70888.0,0.0834]
[1717558171948,0.08717789,70889.0,70888.0,0.0904]
[1717558172160,0.08717789,70889.0,70888.0,0.2494]
[1717558172766,0.069846,70889.0,70888.0,0.2494]
[1717558177727,0.002946,70889.0,70888.0,0.2494]
[1717558177865,0.069846,70889.0,70888.0,0.2494]
[1717558179446,0.069846,70889.0,70888.0,0.2694]
[1717558179650,0.002946,70889.0,70888.0,0.2694]
[1717558179822,0.002946,70889.0,70888.0,0.2494]
[1717558179823,0.069846,70889.0,70888.0,0.2494]
[1717558180318,0.002946,70889.0,70888.0,0.810467]
[1717558180650,0.002946,70889.0,70888.0,1.17716939]
[1717558180868,0.002946,70889.0,70888.0,1.19810575]
[1717558181276,0.002946,70889.0,70888.0,1.092602]
[1717558181491,0.002946,70889.0,70888.0,1.19810575]
[1717558181692,0.002946,70889.0,70888.0,1.18410575]
[1717558181892,0.002946,70889.0,70888.0,1.092602]
[1717558182177,0.002946,70889.0,70888.0,1.106602]
[1717558182380,0.002946,70889.0,70888.0,1.21204557]
[1717558182759,0.002946,70889.0,70888.0,1.41204557]
[1717558182970,0.002946,70889.0,70888.0,1.306602]
[1717558183107,0.002946,70889.0,70888.0,1.21201761]
[1717558184187,0.002946,70889.0,70888.0,1.106602]
[1717558185251,0.002946,70889.0,70888.0,1.19090102]
[1717558185693,0.002946,70889.0,70888.0,1.106602]
[1717558187504,0.002946,70889.0,70888.0,1.107462]
[1717558188347,0.002946,70889.0,70888.0,1.170664]
[1717558189005,0.002946,70889.0,70888.0,1.150664]
[1717558189241,0.002946,70889.0,70888.0,1.170664]
[1717558190333,0.002946,70889.0,70888.0,1.107462]
[1717558193076,0.002946,70889.0,70888.0,1.087462]
[1717558193275,0.002946,70889.0,70888.0,1.107462]
[1717558193679,0.002946,70889.0,70888.0,0.84744777]
[1717558194091,0.002946,70889.0,70888.0,0.86744777]
[1717558195713,0.002946,70889.0,70888.0,0.84744777]
[1717558195930,0.002946,70889.0,70888.0,0.86744777]
[1717558196132,0.002946,70889.0,70888.0,0.84884777]
[1717558196521,0.002946,70889.0,70888.0,0.806727]
[1717558197147,0.002946,70889.0,70888.0,0.826727]
[1717558197345,0.002946,70889.0,70888.0,0.806727]
[1717558198131,0.002946,70889.0,70888.0,0.569927]
[1717558203661,0.002946,70889.0,70888.0,0.42886]
[1717558203870,0.069846,70889.0,70888.0,0.42886]
[1717558209149,0.069846,70889.0,70888.0,0.47098911]
[1717558209347,0.069846,70889.0,70888.0,0.42886]
[1717558210250,0.069846,70889.0,70888.0,0.47107408]
[1717558213349,0.069846,70889.0,70888.0,0.50200238]
[1717558213563,0.069846,70889.0,70888.0,0.42886]
[1717558213787,0.069846,70889.0,70888.0,0.50200237]
[1717558217371,0.069846,70889.0,70888.0,0.50200602]
[1717558218400,0.002946,70889.0,70888.0,0.57880602]
[1717558218608,0.002946,70889.0,70888.0,0.78664095]
[1717558218988,0.002946,70889.0,70888.0,0.76440602]
[1717558219421,0.002946,70889.0,70888.0,0.76440252]
[1717558220026,0.002946,70889.0,70888.0,0.74440252]
[1717558225339,0.002946,70889.0,70888.0,0.80775492]
[1717558225822,0.002946,70889.0,70888.0,0.80777421]
[1717558227061,0.002946,70889.0,70888.0,0.82777421]
[1717558227470,0.002946,70889.0,70888.0,0.80777421]
[1717558227905,0.002946,70889.0,70888.0,0.96884121]
[1717558228472,0.002946,70889.0,70888.0,0.94884121]
[1717558229296,0.002946,70889.0,70888.0,0.88546952]
[1717558230011,0.002946,70889.0,70888.0,0.9488485]
[1717558230321,0.002946,70889.0,70888.0,0.88546952]
[1717558231285,0.002946,70889.0,70888.0,0.812327]
[1717558231500,0.002946,70889.0,70888.0,0.88546939]
[1717558233450,0.002946,70889.0,70888.0,0.96998892]
[1717558235489,0.002946,70889.0,70888.0,0.72758892]
[1717558236290,0.069846,70889.0,70888.0,0.72758892]
[1717558237201,0.069846,70889.0,70888.0,0.72760787]
[1717558237416,0.069846,70889.0,70888.0,0.58654087]
[1717558237905,0.069846,70889.0,70888.0,0.58653904]
[1717558238345,0.00272237,70889.0,70888.0,0.58653904]
[1717558238553,0.00272237,70889.0,70888.0,0.64307026]
[1717558238761,0.06962237,70889.0,70888.0,0.72761198]
[1717558238964,0.06962237,70889.0,70888.0,0.58654498]
[1717558239091,0.06962237,70889.0,70888.0,0.50200326]
[1717558239518,0.06962237,70889.0,70888.0,0.58655078]
[1717558240094,0.06962237,70889.0,70888.0,0.50200326]
[1717558240335,0.00272237,70889.0,70888.0,0.50200326]
[1717558240512,0.00272237,70889.0,70888.0,0.42886]
[1717558240716,0.00272237,70889.0,70888.0,0.50200309]
[1717558242249,0.00133737,70889.0,70888.0,0.60767282]
[1717558246463,0.00133737,70889.0,70888.0,0.50200309]
[1717558247871,0.00133737,70889.0,70888.0,0.60777716]
[1717558249249,0.00133737,70889.0,70888.0,0.68287716]
[1717558249834,0.00133737,70889.0,70888.0,0.84497716]
[1717558252155,0.00133737,70889.0,70888.0,0.84497806]
[1717558252563,0.00133737,70889.0,70888.0,1.13755485]
[1717558253629,0.00133737,70889.0,70888.0,1.13756009]
[1717558261176,0.00133737,70889.0,70888.0,1.03178078]
[1717558261371,0.00133737,70889.0,70888.0,1.13757237]
[1717558262852,0.00133737,70889.0,70888.0,1.06442838]
[1717558263060,0.00133737,70889.0,70888.0,1.13757245]
[1717558273326,0.00133737,70889.0,70888.0,1.03178086]
[1717558273527,0.00133737,70889.0,70888.0,1.1375506]
[1717558273778,0.00133737,70889.0,70888.0,1.2715176]
[1717558273978,0.00133737,70889.0,70888.0,1.65920179]
[1717558274301,0.00133737,70889.0,70888.0,1.8658716]
[1717558274517,0.00133737,70889.0,70888.0,2.27004643]
[1717558274769,0.00133737,70889.0,70888.0,2.49004643]
[1717558275204,0.00133737,70889.0,70888.0,2.59004643]
[1717558275414,0.00133737,70889.0,70888.0,2.5540066]
[1717558275642,0.00133737,70889.0,70888.0,2.5400066]
[1717558276574,0.00133737,70889.0,70888.0,2.74105668]
[1717558276794,0.00133737,70889.0,70888.0,2.75505668]
[1717558277236,0.00133737,70889.0,70888.0,2.5400066]
[1717558277693,0.00133737,70889.0,70888.0,2.5540066]
[1717558278306,0.00133737,70889.0,70888.0,2.5680066]
[1717558281677,0.00133737,70889.0,70888.0,2.1680066]
[1717558281852,0.00133737,70889.0,70888.0,2.5680066]
[1717558282688,0.00133737,70889.0,70888.0,2.56799522]
[1717558285005,0.00133737,70889.0,70888.0,2.57856969]
[1717558285208,0.00133737,70889.0,70888.0,2.69447363]
[1717558285411,0.00133737,70889.0,70888.0,2.56799522]
[1717558286464,0.00133737,70889.0,70888.0,2.69445321]
[1717558288020,0.00133737,70889.0,70888.0,2.56799522]
[1717558288675,0.00133737,70889.0,70888.0,2.55399522]
[1717558289346,0.00133737,70889.0,70888.0,2.56799522]
[1717558290313,0.00133737,70889.0,70888.0,2.50109522]
[1717558290536,0.00133737,70889.0,70888.0,2.56799522]
[1717558290734,0.00133737,70889.0,70888.0,2.69442131]
[1717558291292,0.00133737,70889.0,70888.0,2.97655631]
[1717558291902,0.00133737,70889.0,70888.0,2.85013022]
[1717558292647,0.00133737,70889.0,70888.0,2.78323022]
[1717558292862,0.00133737,70889.0,70888.0,2.85013022]
[1717558294621,0.00133737,70889.0,70888.0,2.78323022]
[1717558294820,0.00133737,70889.0,70888.0,2.85013022]
[1717558295942,0.00133737,70889.0,70888.0,2.97658408]
[1717558296395,0.00133737,70889.0,70888.0,2.97313022]
[1717558297521,0.000946,70896.0,70895.0,1.307374]
[1717558297722,0.000946,70896.0,70895.0,2.23311506]
[1717558297928,0.000946,70896.0,70895.0,2.25611506]
[1717558298807,0.000946,70896.0,70895.0,2.27011506]
[1717558299019,0.000946,70896.0,70895.0,2.28411506]
[1717558302283,0.000946,70896.0,70895.0,2.29359706]
[1717558302910,0.000946,70896.0,70895.0,2.27927677]
[1717558304648,0.000946,70896.0,70895.0,2.37927677]
[1717558306363,0.000946,70896.0,70895.0,2.66138377]
[1717558306669,0.002946,70909.0,70908.0,1.615137]
[1717558306869,0.002946,70909.0,70908.0,2.53947806]
[1717558307676,0.002946,70909.0,70908.0,2.82153306]
[1717558307925,0.002946,70909.0,70908.0,2.55463306]
[1717558308334,0.002946,70909.0,70908.0,2.62153306]
[1717558308541,0.002946,70909.0,70908.0,2.82153306]
[1717558308744,0.002946,70909.0,70908.0,2.83553306]
[1717558309106,0.002946,70909.0,70908.0,2.84953306]
[1717558309510,0.002946,70909.0,70908.0,2.95475564]
[1717558309990,0.002946,70909.0,70908.0,2.84953306]
[1717558310306,0.002946,70909.0,70908.0,2.64953306]
[1717558310518,0.002946,70909.0,70908.0,2.84953306]
[1717558311328,0.002946,70909.0,70908.0,2.83521277]
[1717558314040,0.002946,70909.0,70908.0,2.63521277]
[1717558314266,0.002946,70909.0,70908.0,2.58524527]
[1717558314477,0.002946,70909.0,70908.0,2.65214527]
[1717558315282,0.002946,70909.0,70908.0,2.58524527]
[1717558315525,0.002946,70909.0,70908.0,2.65214527]
[1717558315872,0.002946,70909.0,70908.0,2.85214527]
[1717558316087,0.002946,70909.0,70908.0,2.65214527]
[1717558316727,0.002946,70909.0,70908.0,2.85214527]
[1717558319186,0.002946,70909.0,70908.0,2.65214527]
[1717558319610,0.002946,70909.0,70908.0,2.85214527]
[1717558320230,0.002946,70909.0,70908.0,2.65214527]
[1717558321357,0.002946,70909.0,70908.0,2.85214527]
[1717558322386,0.002946,70909.0,70908.0,2.9784249]
[1717558323002,0.002946,70909.0,70908.0,2.85214527]
[1717558323228,0.002946,70909.0,70908.0,2.87514527]
[1717558326260,1e-08,70909.0,70908.0,2.97514527]
[1717558327093,1e-08,70909.0,70908.0,2.96114527]
[1717558327426,1e-08,70909.0,70908.0,2.97514527]
[1717558327641,1e-08,70909.0,70908.0,2.88802022]
[1717558327842,1e-08,70909.0,70908.0,2.97511753]
[1717558328650,1e-08,70909.0,70908.0,2.9751175]
[1717558329331,1e-08,70909.0,70908.0,2.99714962]
[1717558329530,1e-08,70909.0,70908.0,2.93024962]
[1717558329732,1e-08,70909.0,70908.0,2.99714962]
[1717558332373,1e-08,70909.0,70908.0,2.99714962]
[1717558334407,1e-08,70909.0,70908.0,3.18363794]
[1717558335018,1e-08,70909.0,70908.0,2.92405234]
[1717558335283,1e-08,70909.0,70908.0,3.18378846]
[1717558336589,1e-08,70909.0,70908.0,3.18381731]
[1717558337162,1e-08,70909.0,70908.0,2.99714955]
[1717558337574,1e-08,70909.0,70908.0,2.99714945]
[1717558338448,0.009482,70916.0,70915.0,0.925067]
[1717558338677,0.009482,70916.0,70915.0,1.60205983]
[1717558339830,0.009482,70916.0,70915.0,1.61605983]
[1717558340787,0.009482,70916.0,70915.0,1.41605983]
[1717558341172,0.009482,70916.0,70915.0,1.69808683]
[1717558341373,0.009482,70916.0,70915.0,1.61605983]
[1717558341634,0.009482,70916.0,70915.0,1.63005983]
[1717558344189,0.009482,70916.0,70915.0,1.71165983]
[1717558349106,0.009482,70916.0,70915.0,1.63856272]
[1717558349335,0.009482,70916.0,70915.0,1.71165955]
[1717558350938,0.009482,70916.0,70915.0,1.7116596]
[1717558351597,0.009482,70916.0,70915.0,1.9936866]
[1717558352358,0.009482,70916.0,70915.0,1.10366063]
[1717558352573,0.155982,70916.0,70915.0,0.53468667]
[1717558353225,0.155982,70916.0,70915.0,0.52068667]
[1717558353369,0.155982,70916.0,70915.0,0.61229413]
[1717558353584,0.155982,70916.0,70915.0,0.62629413]
[1717558354188,0.155982,70916.0,70915.0,0.52068667]
[1717558354422,0.155982,70916.0,70915.0,0.62627191]
[1717558354869,0.155982,70916.0,70915.0,0.53468667]
[1717558355048,0.155982,70916.0,70915.0,0.62627171]
[1717558355202,0.155982,70916.0,70915.0,0.64027171]
[1717558357321,0.155982,70916.0,70915.0,0.53468667]
[1717558357996,0.155982,70916.0,70915.0,0.39367367]
[1717558358454,0.155982,70916.0,70915.0,0.1433213]
[1717558358837,0.155982,70916.0,70915.0,0.05622442]
[1717558359054,0.155982,70916.0,70915.0,0.04222413]
[1717558359254,0.155982,70916.0,70915.0,0.05622413]
[1717558359463,0.155982,70916.0,70915.0,0.07022413]
[1717558359784,0.155982,70916.0,70915.0,0.05622413]
[1717558360293,0.155982,70916.0,70915.0,0.19723713]
[1717558360534,0.155982,70916.0,70915.0,0.155013]
[1717558361072,0.155982,70916.0,70915.0,0.54590497]
[1717558362196,0.155982,70916.0,70915.0,0.4614567]
[1717558362598,0.155982,70916.0,70915.0,0.54590497]
[1717558363198,0.155982,70916.0,70915.0,0.4614567]
[1717558367130,0.222882,70916.0,70915.0,0.3204437]
[1717558367424,0.222882,70916.0,70915.0,0.028]
[1717558369271,0.155982,70916.0,70915.0,0.028]
[1717558376591,0.383893,70916.0,70915.0,0.028]
[1717558377444,0.52831193,70916.0,70915.0,0.028]
[1717558377689,0.52831193,70916.0,70915.0,0.014]
[1717558378187,0.51831193,70916.0,70909.0,0.00086]
[1717558378404,0.0669,70910.0,70909.0,0.00086]
[1717558378585,0.2134,70910.0,70909.0,0.00086]
[1717558379969,0.2134,70910.0,70909.0,0.01386]
[1717558380186,0.2334,70910.0,70909.0,0.01386]
[1717558380401,0.2134,70910.0,70909.0,0.02786]
[1717558380803,0.2134,70910.0,70909.0,0.01386]
[1717558381247,0.2134,70910.0,70909.0,0.02786]
[1717558381478,0.374423,70910.0,70909.0,0.02786]
[1717558381700,0.51884193,70910.0,70909.0,0.02786]
[1717558381925,0.80088893,70910.0,70909.0,0.02786]
[1717558382154,1.08293593,70910.0,70909.0,0.02786]
[1717558382385,1.28293593,70910.0,70909.0,0.02786]
[1717558382606,1.08293593,70910.0,70909.0,0.02786]
[1717558382899,0.80088893,70910.0,70909.0,0.02786]
[1717558383115,1.28293593,70910.0,70909.0,0.00086]
[1717558383323,1.28293593,70910.0,70909.0,0.00986]
[1717558383554,1.00088893,70910.0,70909.0,0.01986]
[1717558383988,1.00188893,70910.0,70909.0,0.01086]
[1717558384369,1.00388893,70910.0,70909.0,0.01086]
[1717558384579,0.80388893,70910.0,70909.0,0.01086]
[1717558389664,0.73698893,70910.0,70909.0,0.01086]
[1717558389901,0.80388893,70910.0,70909.0,0.01086]
[1717558392319,0.71698893,70910.0,70909.0,0.01086]
[1717558392533,0.78388893,70910.0,70909.0,0.01086]
[1717558392961,0.80388893,70910.0,70909.0,0.01086]
[1717558401954,0.144023,70910.0,70909.0,0.01086]
[1717558402324,0.144023,70910.0,70909.0,0.24796]
[1717558402796,0.003,70910.0,70909.0,0.24796]
[1717558403061,0.001,70910.0,70909.0,0.24796]
[1717558403253,0.001,70910.0,70909.0,0.25096]
[1717558403469,0.141018,70913.0,70909.0,0.24096]
[1717558403695,0.141018,70913.0,70909.0,0.24296]
[1717558403919,0.0669,70912.0,70909.0,0.24296]
[1717558404149,0.141018,70913.0,70909.0,0.24296]
[1717558404377,0.0669,70912.0,70909.0,0.24296]
[1717558404617,0.0669,70912.0,70909.0,0.24096]
[1717558404834,0.0669,70912.0,70909.0,0.24296]
[1717558405455,0.0669,70912.0,70909.0,0.23996]
[1717558406089,0.0669,70912.0,70909.0,0.24296]
[1717558406455,0.0669,70912.0,70909.0,0.23796]
[1717558406652,0.0669,70912.0,70909.0,0.23996]
[1717558407881,0.0669,70912.0,70909.0,0.24296]
[1717558410308,0.02,70913.0,70909.0,0.24296]
[1717558410468,0.0669,70911.0,70909.0,0.24296]
[1717558411294,0.0669,70911.0,70909.0,0.23996]
[1717558411606,0.0669,70911.0,70909.0,0.24296]
[1717558412017,0.0669,70911.0,70909.0,0.23996]
[1717558412427,0.0869,70911.0,70909.0,0.24296]
[1717558412627,0.0869,70911.0,70909.0,0.24096]
[1717558412826,0.0669,70911.0,70909.0,0.24096]
[1717558413037,0.30544193,70910.0,70909.0,0.00586]
[1717558413258,0.45194193,70910.0,70909.0,0.00586]
[1717558414048,0.14102,70912.0,70909.0,0.00286]
[1717558414249,0.0669,70910.0,70909.0,0.00086]
[1717558416087,0.0669,70910.0,70909.0,0.00386]
[1717558416723,0.0669,70910.0,70909.0,0.00586]
[1717558420412,0.141022,70911.0,70909.0,0.00586]
[1717558420651,0.02607977,70916.0,70910.0,0.2432]
[1717558420850,0.02607977,70916.0,70912.0,0.1625]
[1717558421075,0.02607977,70916.0,70913.0,0.0807]
[1717558423592,0.02807977,70916.0,70913.0,0.0807]
[1717558424206,0.03007977,70916.0,70913.0,0.4807]
[1717558424748,0.0669,70914.0,70913.0,0.4807]
[1717558426838,0.0689,70914.0,70913.0,0.4807]
[1717558427110,0.0709,70914.0,70913.0,0.4807]
[1717558442878,0.004,70914.0,70913.0,0.6421]
[1717558443962,0.002,70914.0,70913.0,0.6421]
[1717558444187,0.02607977,70916.0,70913.0,0.68427905]
[1717558444343,0.0669,70914.0,70913.0,0.70127905]
[1717558444975,0.0669,70914.0,70913.0,0.6591]
[1717558445410,0.0669,70914.0,70913.0,0.70127905]
[1717558445629,0.0669,70914.0,70913.0,0.69227905]
[1717558446101,0.0669,70914.0,70913.0,0.70127905]
[1717558447183,0.067846,70914.0,70913.0,0.70127905]
[1717558447420,0.067846,70914.0,70913.0,0.6591]
[1717558448111,0.05848983,70914.0,70913.0,0.6591]
[1717558449120,0.000946,70914.0,70913.0,0.6591]
[1717558449346,0.000946,70914.0,70913.0,0.72250351]
[1717558449961,0.16536493,70914.0,70913.0,0.017]
[1717558450182,0.16536493,70914.0,70913.0,0.05927649]
[1717558450183,0.45287993,70914.0,70913.0,0.05927649]
[1717558450394,0.45287993,70914.0,70913.0,0.017]
[1717558451229,0.28637993,70914.0,70913.0,0.009]
[1717558451430,0.28637993,70914.0,70913.0,0.011]
[1717558451643,0.28637993,70914.0,70913.0,0.002]
[1717558452046,0.28637993,70914.0,70913.0,0.005]
[1717558452714,0.35327993,70914.0,70913.0,0.005]
[1717558455057,0.28637993,70914.0,70913.0,0.005]
[1717558455470,0.067846,70914.0,70913.0,0.0853]
[1717558455894,0.067846,70914.0,70913.0,0.12757649]
[1717558457752,0.000946,70914.0,70913.0,0.12757649]
[1717558457933,0.067846,70914.0,70913.0,0.12757649]
[1717558458981,0.067846,70914.0,70913.0,0.0853]
[1717558459384,0.067846,70914.0,70913.0,0.14870351]
[1717558461655,0.067846,70914.0,70913.0,0.06840351]
[1717558465293,0.067846,70914.0,70913.0,0.005]
[1717558467572,0.000946,70914.0,70913.0,0.788517]
[1717558468427,0.000946,70914.0,70913.0,0.785517]
[1717558468837,0.000946,70914.0,70913.0,0.792517]
[1717558469251,0.000946,70914.0,70913.0,0.794517]
[1717558469663,0.000946,70914.0,70913.0,0.806517]
[1717558471345,0.000946,70914.0,70913.0,0.91216015]
[1717558471503,0.000946,70914.0,70913.0,0.806517]
[1717558472983,0.000946,70914.0,70913.0,0.91216015]
[1717558473185,0.000946,70914.0,70913.0,0.9121593]
[1717558475627,0.000946,70914.0,70913.0,0.423]
[1717558475832,0.000946,70914.0,70913.0,0.023]
[1717558477845,0.30637993,70914.0,70913.0,0.023]
[1717558478055,0.32647993,70914.0,70913.0,0.023]
[1717558478561,0.43287993,70914.0,70913.0,0.023]
[1717558481210,0.28637993,70914.0,70913.0,0.023]
[1717558481423,0.14536493,70914.0,70913.0,0.023]
[1717558481677,0.21226493,70914.0,70913.0,0.023]
[1717558481882,0.000946,70914.0,70913.0,0.2527]
[1717558483104,0.000946,70914.0,70913.0,0.6527]
[1717558485076,0.000946,70914.0,70913.0,0.023]
[1717558485469,0.000946,70914.0,70913.0,0.398917]
[1717558486678,0.000946,70914.0,70913.0,0.023]
[1717558486886,0.000946,70914.0,70913.0,0.0863096]
[1717558487489,0.000946,70914.0,70913.0,0.023]
[1717558488105,0.000946,70914.0,70913.0,0.0863096]
[1717558488516,0.21226493,70914.0,70913.0,0.0863096]
[1717558488719,0.21226493,70914.0,70913.0,0.06520853]
[1717558488929,0.21226493,70914.0,70913.0,0.023]
[1717558489130,0.37327993,70914.0,70913.0,0.023]
[1717558489345,0.51977993,70914.0,70913.0,0.023]
[1717558490325,0.51977993,70914.0,70913.0,0.012]
[1717558490742,0.51977993,70914.0,70913.0,0.015]
[1717558491147,0.51977993,70914.0,70913.0,0.003]
[1717558491327,0.51977993,70914.0,70913.0,0.015]
[1717558491529,0.35327993,70914.0,70913.0,0.015]
[1717558491758,0.000946,70914.0,70913.0,0.015]
[1717558492109,0.000946,70914.0,70913.0,0.454217]
[1717558492297,0.000946,70914.0,70913.0,0.458217]
[1717558492834,0.000946,70914.0,70913.0,0.454217]
[1717558493064,0.000946,70914.0,70913.0,0.466217]
[1717558493223,0.000946,70914.0,70913.0,0.399317]
[1717558493429,0.000946,70914.0,70913.0,0.396317]
[1717558493873,0.000946,70914.0,70913.0,0.410317]
[1717558494407,0.000946,70914.0,70913.0,0.51773976]
[1717558494761,0.000946,70914.0,70913.0,0.53173976]
[1717558495619,0.000946,70914.0,70913.0,0.53173568]
[1717558495761,0.000946,70914.0,70913.0,0.426317]
[1717558495961,0.000946,70914.0,70913.0,0.51065747]
[1717558496337,0.000946,70914.0,70913.0,0.12634047]
[1717558496532,0.000946,70914.0,70913.0,0.10525402]
[1717558496797,0.107346,70914.0,70913.0,0.10525223]
[1717558497021,0.27176493,70914.0,70913.0,0.042]
[1717558497873,0.41277993,70914.0,70913.0,0.014]
[1717558498071,0.02,70913.0,70909.0,0.00086]
[1717558498327,0.16441893,70913.0,70909.0,0.00086]
[1717558499586,0.14441893,70912.0,70909.0,0.00086]
[1717558499803,0.161023,70910.0,70909.0,0.00086]
[1717558500004,0.30544193,70910.0,70909.0,0.00086]
[1717558500778,0.30544193,70910.0,70909.0,0.02386]
[1717558501503,0.30544193,70910.0,70909.0,0.01486]
[1717558501504,0.45194193,70910.0,70909.0,0.01486]
[1717558501703,0.45194193,70910.0,70909.0,0.00386]
[1717558502501,0.45194193,70910.0,70909.0,0.00086]
[1717558503175,0.45194193,70910.0,70909.0,0.00186]
[1717558503580,0.45194193,70910.0,70909.0,0.00086]
[1717558503785,0.45194193,70910.0,70909.0,0.00386]
[1717558504187,0.45294193,70910.0,70909.0,0.00386]
[1717558504416,0.45294193,70910.0,70909.0,0.00086]
[1717558504618,1.01703593,70910.0,70909.0,0.00086]
[1717558504825,1.02003593,70910.0,70909.0,0.00086]
[1717558505068,1.22003593,70910.0,70909.0,0.00086]
[1717558505556,1.02003593,70910.0,70909.0,0.00086]
[1717558506755,1.22003593,70910.0,70909.0,0.00086]
[1717558507781,1.21703593,70910.0,70909.0,0.00086]
[1717558508000,1.01603593,70910.0,70909.0,0.00086]
[1717558508270,1.18613593,70910.0,70909.0,0.00286]
[1717558508468,1.38613593,70910.0,70909.0,0.00286]
[1717558508599,1.38413593,70910.0,70909.0,0.00186]
[1717558508999,1.38613593,70910.0,70909.0,0.00286]
[1717558510117,1.38613593,70910.0,70909.0,0.00186]
[1717558510262,1.38313593,70910.0,70909.0,0.00086]
[1717558510470,1.39113593,70910.0,70909.0,0.00286]
[1717558510649,1.40013593,70910.0,70909.0,0.00286]
[1717558511044,1.40013593,70910.0,70909.0,0.00386]
[1717558511045,1.40813593,70910.0,70909.0,0.00386]
[1717558511490,1.40829332,70910.0,70909.0,0.00186]
[1717558511889,1.41729332,70910.0,70909.0,0.00186]
[1717558512118,1.40929332,70910.0,70909.0,0.00186]
[1717558513339,1.40029332,70910.0,70909.0,0.00086]
[1717558513718,1.50629332,70910.0,70909.0,0.00186]
[1717558513918,1.52929332,70910.0,70909.0,0.00186]
[1717558514119,1.52329332,70910.0,70909.0,0.00086]
[1717558514522,1.82134032,70910.0,70909.0,0.002]
[1717558514939,1.82134032,70910.0,70889.0,0.4731]
[1717558514940,0.14106,70892.0,70889.0,0.4731]
[1717558515132,0.1,70905.0,70890.0,0.43336945]
[1717558515133,0.28547993,70891.0,70890.0,0.43336945]
[1717558515336,0.28547993,70891.0,70888.0,0.00086]
[1717558516172,0.141065,70889.0,70888.0,0.00086]
[1717558516346,0.28548393,70889.0,70888.0,0.00086]
[1717558518137,0.28548393,70889.0,70888.0,0.01386]
[1717558518278,0.28548393,70889.0,70888.0,0.02586]
[1717558518692,0.28548393,70889.0,70888.0,0.01386]
[1717558519045,0.28648393,70889.0,70888.0,0.02586]
[1717558522157,0.35338393,70889.0,70888.0,0.02586]
[1717558528723,0.28648393,70889.0,70888.0,0.02586]
[1717558528926,0.35338393,70889.0,70888.0,0.02586]
[1717558532869,0.28648393,70889.0,70888.0,0.02586]
[1717558533066,0.35338393,70889.0,70888.0,0.02586]
[1717558535845,0.37338393,70889.0,70888.0,0.02586]
[1717558536445,0.35338393,70889.0,70888.0,0.01286]
[1717558536606,0.35338393,70889.0,70888.0,0.01786]
[1717558536811,0.35238393,70889.0,70888.0,0.00586]
[1717558537237,0.35238393,70889.0,70888.0,0.00086]
[1717558537434,0.35238393,70889.0,70888.0,0.00386]
[1717558538436,0.35238393,70889.0,70888.0,0.00686]
[1717558538633,0.35238393,70889.0,70888.0,0.00386]
[1717558539069,0.37238393,70889.0,70888.0,0.00586]
[1717558539276,0.65451493,70889.0,70888.0,0.00586]
[1717558540434,0.65451493,70889.0,70888.0,0.00286]
[1717558540607,0.65451493,70889.0,70888.0,0.00686]
[1717558542111,0.65451493,70889.0,70888.0,0.00086]
[1717558542315,0.63451493,70889.0,70888.0,0.00286]
[1717558542663,0.65451493,70889.0,70888.0,0.00286]
[1717558542867,0.63651493,70889.0,70888.0,0.00286]
[1717558543556,0.65651493,70889.0,70888.0,0.00286]
[1717558559682,0.76291493,70889.0,70888.0,0.00286]
[1717558559913,0.65651493,70889.0,70888.0,0.00286]
[1717558563117,0.93864593,70889.0,70888.0,0.00286]
[1717558563328,1.13026719,70889.0,70888.0,0.00286]
[1717558564219,1.13025084,70889.0,70888.0,0.00286]
[1717558564667,1.13525084,70889.0,70888.0,0.00286]
[1717558565159,1.13025084,70889.0,70888.0,0.00286]
[1717558565374,1.12818356,70889.0,70888.0,0.00086]
[1717558565999,1.13518356,70889.0,70888.0,0.00186]
[1717558566462,1.13418356,70889.0,70888.0,0.00186]
[1717558566869,1.13418356,70889.0,70888.0,0.00286]
[1717558566870,1.14518356,70889.0,70888.0,0.00286]
[1717558569557,1.14513345,70889.0,70888.0,0.00286]
[1717558570841,1.14511909,70889.0,70888.0,0.00286]
[1717558571765,1.17030475,70889.0,70888.0,0.00286]
[1717558573597,1.03871909,70889.0,70888.0,0.00286]
[1717558574078,0.141091,70877.0,70872.0,0.04226988]
[1717558574274,0.0669,70874.0,70872.0,0.04226988]
[1717558575773,0.0669,70874.0,70871.0,0.04426988]
[1717558577310,0.0669,70874.0,70873.0,0.0814]
[1717558577508,0.0679,70874.0,70873.0,0.0814]
[1717558578569,0.0669,70874.0,70873.0,0.0814]
[1717558578809,0.0679,70874.0,70873.0,0.0814]
[1717558579165,0.0689,70874.0,70873.0,0.0814]
[1717558579342,0.0679,70874.0,70873.0,0.0814]
[1717558579498,0.0689,70874.0,70873.0,0.0884]
[1717558580046,0.0679,70874.0,70873.0,0.0884]
[1717558580519,0.0689,70874.0,70873.0,0.0964]
[1717558585363,0.0689,70874.0,70873.0,0.1386696]
[1717558585946,0.0689,70874.0,70873.0,0.0964]
[1717558586210,0.0689,70874.0,70873.0,0.1386696]
[1717558589222,0.0689,70874.0,70873.0,0.43132396]
[1717558590330,0.0689,70874.0,70873.0,0.38905436]
[1717558592493,0.209995,70874.0,70873.0,0.38905436]
[1717558592943,0.209995,70874.0,70873.0,0.43134007]
[1717558593352,0.63660393,70874.0,70873.0,0.05728701]
[1717558593582,0.89730393,70874.0,70873.0,0.015]
[1717558594014,0.91937186,70874.0,70873.0,0.015]
[1717558594236,0.89730393,70874.0,70873.0,0.007]
[1717558594446,0.89630393,70874.0,70873.0,0.007]
[1717558594663,0.89630393,70874.0,70873.0,0.013]
[1717558595093,0.28651393,70874.0,70873.0,0.2424]
[1717558595307,0.142095,70874.0,70873.0,0.2424]
[1717558595575,0.208995,70874.0,70873.0,0.2424]
[1717558595804,0.207995,70874.0,70873.0,0.2354]
[1717558596230,0.207995,70874.0,70873.0,0.2314]
[1717558596450,0.207995,70874.0,70873.0,0.2294]
[1717558596767,0.209995,70874.0,70873.0,0.2294]
[1717558606094,0.143095,70874.0,70873.0,0.2294]
[1717558606291,0.209995,70874.0,70873.0,0.2294]
[1717558607474,0.143095,70874.0,70873.0,0.2294]